[Event "*** Titled Tuesday Blitz"]
[Site "Chess.com"]
[Date "2020.04.21"]
[Round "2"]
[White "Shota_Azaladze"]
[Black "Cecile-Haussernot"]
[Result "1-0"]
[WhiteElo "2743"]
[BlackElo "2338"]
[TimeControl "180+1"]
[EndTime "10:17:50 PDT"]
[Termination "Shota_Azaladze won by resignation"]

1. Nf3 {[%clk 0:03:00.9]} 1... d5 {[%clk 0:02:58.2]} 2. g3 {[%clk 0:03:00.7]}
2... Nf6 {[%clk 0:02:57]} 3. Bg2 {[%clk 0:02:59.7]} 3... c5 {[%clk 0:02:56.9]}
4. O-O {[%clk 0:02:58.5]} 4... Nc6 {[%clk 0:02:54.2]} 5. c4 {[%clk 0:02:58.9]}
5... e6 {[%clk 0:02:52.1]} 6. cxd5 {[%clk 0:02:57.8]} 6... exd5 {[%clk
0:02:51.9]} 7. d4 {[%clk 0:02:56.1]} 7... Be7 {[%clk 0:02:31.5]} 8. Nc3 {[%clk
0:02:54.7]} 8... O-O {[%clk 0:02:28.9]} 9. dxc5 {[%clk 0:02:53.3]} 9... Bxc5
{[%clk 0:01:13.9]} 10. Na4 {[%clk 0:02:49.7]} 10... Be7 {[%clk 0:01:08.2]} 11.
Be3 {[%clk 0:02:49]} 11... Be6 {[%clk 0:01:05.3]} 12. a3 {[%clk 0:02:41.5]}
12... Rc8 {[%clk 0:01:00.2]} 13. b4 {[%clk 0:02:38.2]} 13... Qd7 {[%clk
0:00:57.9]} 14. Nc5 {[%clk 0:02:28.2]} 14... Bxc5 {[%clk 0:00:56.2]} 15. Bxc5
{[%clk 0:02:29.1]} 15... Rfd8 {[%clk 0:00:56.4]} 16. Re1 {[%clk 0:02:17.6]}
16... b6 {[%clk 0:00:56.4]} 17. Bd4 {[%clk 0:02:16.8]} 17... Ne4 {[%clk
0:00:52.7]} 18. Rc1 {[%clk 0:02:11.1]} 18... Nxd4 {[%clk 0:00:51.3]} 19. Nxd4
{[%clk 0:02:05.8]} 19... Rxc1 {[%clk 0:00:46.6]} 20. Qxc1 {[%clk 0:02:03.7]}
20... Rc8 {[%clk 0:00:46.6]} 21. Qf4 {[%clk 0:01:59.8]} 21... Nc3 {[%clk
0:00:37.7]} 22. Bf3 {[%clk 0:01:52.4]} 22... h6 {[%clk 0:00:34.3]} 23. h4 {[%clk
0:01:51]} 23... Rc4 {[%clk 0:00:34.6]} 24. Qe3 {[%clk 0:01:43.1]} 24... Na4
{[%clk 0:00:32.5]} 25. Rd1 {[%clk 0:01:35.7]} 25... Nc3 {[%clk 0:00:27]} 26. Rd3
{[%clk 0:01:29.3]} 26... Qc8 {[%clk 0:00:25.5]} 27. b5 {[%clk 0:01:20.7]} 27...
Bd7 {[%clk 0:00:24.5]} 28. a4 {[%clk 0:01:16.1]} 28... Nxa4 {[%clk 0:00:24]} 29.
Bxd5 {[%clk 0:01:15.9]} 29... Rc1+ {[%clk 0:00:24.3]} 30. Kg2 {[%clk 0:01:15.7]}
30... Nb2 {[%clk 0:00:23.1]} 31. Rb3 {[%clk 0:01:04]} 31... Nd1 {[%clk 0:00:21]}
32. Qf4 {[%clk 0:01:03.5]} 32... Bh3+ {[%clk 0:00:17.5]} 33. Kh2 {[%clk
0:01:01.5]} 33... Qd7 {[%clk 0:00:18]} 34. e4 {[%clk 0:00:45.1]} 34... Be6
{[%clk 0:00:07.2]} 35. Nxe6 {[%clk 0:00:31.5]} 35... fxe6 {[%clk 0:00:06.4]} 36.
Bc6 {[%clk 0:00:32]} 36... Qd4 {[%clk 0:00:04.8]} 37. Rf3 {[%clk 0:00:29.7]}
37... Nxf2 {[%clk 0:00:03.6]} 38. Rxf2 {[%clk 0:00:28]} 38... Qd1 {[%clk
0:00:04.5]} 39. Qf8+ {[%clk 0:00:24.6]} 39... Kh7 {[%clk 0:00:04.9]} 40. Qf3
{[%clk 0:00:25.1]} 40... Qg1+ {[%clk 0:00:04.4]} 41. Kh3 {[%clk 0:00:23.2]} 1-0

[Event "*** Titled Tuesday Blitz"]
[Site "Chess.com"]
[Date "2020.04.21"]
[Round "2"]
[White "theblitzchamp"]
[Black "DDTerziev04"]
[Result "1-0"]
[WhiteElo "2638"]
[BlackElo "2287"]
[TimeControl "180+1"]
[EndTime "10:17:51 PDT"]
[Termination "theblitzchamp won by resignation"]

1. d4 {[%clk 0:03:00.9]} 1... d5 {[%clk 0:02:59.5]} 2. Bf4 {[%clk 0:02:59]} 2...
Nf6 {[%clk 0:02:56.8]} 3. e3 {[%clk 0:02:58.2]} 3... c5 {[%clk 0:02:55.8]} 4. c3
{[%clk 0:02:44.1]} 4... Nc6 {[%clk 0:02:53.2]} 5. Nd2 {[%clk 0:02:43]} 5... Bf5
{[%clk 0:02:45.5]} 6. Ngf3 {[%clk 0:02:36]} 6... Qb6 {[%clk 0:02:39.6]} 7. Qb3
{[%clk 0:02:34.8]} 7... c4 {[%clk 0:02:38.7]} 8. Qxb6 {[%clk 0:02:24.6]} 8...
axb6 {[%clk 0:02:39.6]} 9. Ne5 {[%clk 0:02:25.1]} 9... Nxe5 {[%clk 0:02:31.5]}
10. Bxe5 {[%clk 0:02:15.9]} 10... e6 {[%clk 0:02:17.3]} 11. f3 {[%clk
0:02:15.2]} 11... b5 {[%clk 0:02:06.7]} 12. g4 {[%clk 0:01:52.4]} 12... Bg6
{[%clk 0:02:05.5]} 13. h4 {[%clk 0:01:41.3]} 13... h5 {[%clk 0:01:57.2]} 14. g5
{[%clk 0:01:29.1]} 14... Nd7 {[%clk 0:01:56.5]} 15. Bg3 {[%clk 0:01:26.3]} 15...
b4 {[%clk 0:01:39.7]} 16. e4 {[%clk 0:01:22.8]} 16... bxc3 {[%clk 0:01:36.1]}
17. bxc3 {[%clk 0:01:22.1]} 17... Ba3 {[%clk 0:01:27.2]} 18. Rb1 {[%clk
0:01:21.2]} 18... b6 {[%clk 0:01:24.5]} 19. Rb5 {[%clk 0:01:08.6]} 19... Ra5
{[%clk 0:00:59.8]} 20. Rxa5 {[%clk 0:00:54]} 20... bxa5 {[%clk 0:01:00.7]} 21.
Bc7 {[%clk 0:00:38.3]} 21... a4 {[%clk 0:00:55.5]} 22. f4 {[%clk 0:00:38.2]}
22... Ke7 {[%clk 0:00:20.3]} 23. f5 {[%clk 0:00:36.9]} 23... exf5 {[%clk
0:00:20.3]} 24. exd5 {[%clk 0:00:36.4]} 24... Bd6 {[%clk 0:00:19.5]} 25. Bxd6+
{[%clk 0:00:29.7]} 25... Kxd6 {[%clk 0:00:20.4]} 26. Bxc4 {[%clk 0:00:20.4]}
26... Nb6 {[%clk 0:00:19.7]} 27. Kd1 {[%clk 0:00:19.1]} 27... Rc8 {[%clk
0:00:16.5]} 28. Bd3 {[%clk 0:00:12.3]} 28... Rxc3 {[%clk 0:00:15.6]} 29. Bb1
{[%clk 0:00:11.5]} 29... Nxd5 {[%clk 0:00:13.6]} 30. Re1 {[%clk 0:00:11.7]}
30... f4 {[%clk 0:00:07]} 31. Bxg6 {[%clk 0:00:11.2]} 31... fxg6 {[%clk
0:00:07.9]} 32. Ne4+ {[%clk 0:00:11.6]} 32... Kc6 {[%clk 0:00:06.9]} 33. Nxc3
{[%clk 0:00:11.7]} 33... Nxc3+ {[%clk 0:00:07.8]} 34. Kc2 {[%clk 0:00:10.3]}
34... Nxa2 {[%clk 0:00:08]} 35. Re6+ {[%clk 0:00:10.8]} 35... Kd5 {[%clk
0:00:07.8]} 36. Rxg6 {[%clk 0:00:11.7]} 36... Nb4+ {[%clk 0:00:07.8]} 37. Kb1
{[%clk 0:00:11.6]} 37... Kxd4 {[%clk 0:00:07.4]} 38. Rxg7 {[%clk 0:00:11.9]}
38... f3 {[%clk 0:00:07.3]} 39. Rf7 {[%clk 0:00:12.2]} 39... Ke3 {[%clk
0:00:07.3]} 40. g6 {[%clk 0:00:12.7]} 40... Nd5 {[%clk 0:00:06.9]} 41. g7 {[%clk
0:00:13]} 1-0

[Event "*** Titled Tuesday Blitz"]
[Site "Chess.com"]
[Date "2020.04.21"]
[Round "2"]
[White "harkerchess"]
[Black "VinzentSpitzl"]
[Result "0-1"]
[WhiteElo "1949"]
[BlackElo "2370"]
[TimeControl "180+1"]
[EndTime "10:17:51 PDT"]
[Termination "VinzentSpitzl won by checkmate"]

1. d4 {[%clk 0:03:00.9]} 1... d5 {[%clk 0:02:59.6]} 2. c4 {[%clk 0:02:59.6]}
2... e6 {[%clk 0:02:59.7]} 3. Nc3 {[%clk 0:02:58.6]} 3... Bb4 {[%clk 0:02:59.7]}
4. cxd5 {[%clk 0:02:53.8]} 4... exd5 {[%clk 0:02:59.4]} 5. e3 {[%clk 0:02:52.7]}
5... Nf6 {[%clk 0:02:59.5]} 6. Bd3 {[%clk 0:02:51]} 6... O-O {[%clk 0:02:56.3]}
7. Bd2 {[%clk 0:02:50.1]} 7... c6 {[%clk 0:02:55.9]} 8. Qc2 {[%clk 0:02:48.6]}
8... Be6 {[%clk 0:02:53.7]} 9. Nge2 {[%clk 0:02:47.9]} 9... Nbd7 {[%clk
0:02:53.5]} 10. O-O {[%clk 0:02:47.5]} 10... c5 {[%clk 0:02:51.4]} 11. a3 {[%clk
0:02:42.6]} 11... Bxc3 {[%clk 0:02:43]} 12. bxc3 {[%clk 0:02:39.4]} 12... c4
{[%clk 0:02:26.6]} 13. Bf5 {[%clk 0:02:26.5]} 13... Qe7 {[%clk 0:02:26]} 14. Nf4
{[%clk 0:02:24.8]} 14... Bxf5 {[%clk 0:02:18.6]} 15. Qxf5 {[%clk 0:02:25.7]}
15... Qd6 {[%clk 0:02:18.9]} 16. a4 {[%clk 0:02:22]} 16... g6 {[%clk 0:02:13.1]}
17. Qc2 {[%clk 0:02:15.4]} 17... Rfe8 {[%clk 0:02:05.4]} 18. Bc1 {[%clk
0:02:14.2]} 18... b6 {[%clk 0:01:56.9]} 19. Ba3 {[%clk 0:02:13.4]} 19... Qc6
{[%clk 0:01:57]} 20. Rfe1 {[%clk 0:02:03.1]} 20... a6 {[%clk 0:01:42.3]} 21. f3
{[%clk 0:01:56.8]} 21... b5 {[%clk 0:01:41.2]} 22. axb5 {[%clk 0:01:55.7]} 22...
axb5 {[%clk 0:01:42.1]} 23. Bb4 {[%clk 0:01:55.6]} 23... Rxa1 {[%clk 0:01:38.6]}
24. Rxa1 {[%clk 0:01:56.5]} 24... Ra8 {[%clk 0:01:39]} 25. Qb2 {[%clk
0:01:50.1]} 25... Ra6 {[%clk 0:01:31.2]} 26. Rxa6 {[%clk 0:01:48.6]} 26... Qxa6
{[%clk 0:01:30.9]} 27. Qa3 {[%clk 0:01:48.5]} 27... Qxa3 {[%clk 0:01:29.9]} 28.
Bxa3 {[%clk 0:01:49.4]} 28... Nb6 {[%clk 0:01:22.1]} 29. g4 {[%clk 0:01:48.3]}
29... h6 {[%clk 0:01:13.5]} 30. Kf2 {[%clk 0:01:39.6]} 30... g5 {[%clk
0:01:09.9]} 31. Ne2 {[%clk 0:01:34.3]} 31... Nfd7 {[%clk 0:01:04]} 32. Ke1
{[%clk 0:01:32.1]} 32... f6 {[%clk 0:01:03.8]} 33. Kd2 {[%clk 0:01:31.2]} 33...
Kf7 {[%clk 0:01:03.3]} 34. f4 {[%clk 0:01:26.8]} 34... Nb8 {[%clk 0:00:53.5]}
35. Ng3 {[%clk 0:01:18.4]} 35... Nc6 {[%clk 0:00:45.1]} 36. Nf5 {[%clk
0:01:17.3]} 36... Kg6 {[%clk 0:00:45.1]} 37. Nd6 {[%clk 0:01:15.8]} 37... gxf4
{[%clk 0:00:41.7]} 38. exf4 {[%clk 0:01:14.1]} 38... b4 {[%clk 0:00:40]} 39.
cxb4 {[%clk 0:01:13.1]} 39... Nxd4 {[%clk 0:00:39.2]} 40. b5 {[%clk 0:01:06.5]}
40... f5 {[%clk 0:00:33.2]} 41. Bc5 {[%clk 0:01:00.7]} 41... Nb3+ {[%clk
0:00:32.8]} 42. Kc3 {[%clk 0:00:58.3]} 42... Nxc5 {[%clk 0:00:33.7]} 43. gxf5+
{[%clk 0:00:58]} 43... Kf6 {[%clk 0:00:32.4]} 44. Kd4 {[%clk 0:00:58.1]} 44...
Nb3+ {[%clk 0:00:31.2]} 45. Kc3 {[%clk 0:00:57.2]} 45... d4+ {[%clk 0:00:31.2]}
46. Kc2 {[%clk 0:00:57.3]} 46... d3+ {[%clk 0:00:29.9]} 47. Kc3 {[%clk
0:00:56.9]} 47... Nc5 {[%clk 0:00:17.6]} 48. h4 {[%clk 0:00:45.5]} 48... Ke7
{[%clk 0:00:17.3]} 49. Nxc4 {[%clk 0:00:40.9]} 49... Nxc4 {[%clk 0:00:16.8]} 50.
Kxc4 {[%clk 0:00:39.9]} 50... d2 {[%clk 0:00:17.1]} 51. b6 {[%clk 0:00:39.9]}
51... d1=Q {[%clk 0:00:16.6]} 52. Kxc5 {[%clk 0:00:40.1]} 52... Qc2+ {[%clk
0:00:16.5]} 53. Kb5 {[%clk 0:00:39.7]} 53... Kd6 {[%clk 0:00:16.5]} 54. f6
{[%clk 0:00:38.1]} 54... Qb3+ {[%clk 0:00:15.7]} 55. Ka6 {[%clk 0:00:37.6]}
55... Kc6 {[%clk 0:00:15.5]} 56. b7 {[%clk 0:00:37.6]} 56... Qb6# {[%clk
0:00:15.4]} 0-1

[Event "*** Titled Tuesday Blitz"]
[Site "Chess.com"]
[Date "2020.04.21"]
[Round "2"]
[White "Squirlolz"]
[Black "SantoBlue"]
[Result "0-1"]
[WhiteElo "2564"]
[BlackElo "2824"]
[TimeControl "180+1"]
[EndTime "10:17:52 PDT"]
[Termination "SantoBlue won by resignation"]

1. e4 {[%clk 0:03:00.9]} 1... e5 {[%clk 0:02:58.6]} 2. Nf3 {[%clk 0:03:00.5]}
2... Nc6 {[%clk 0:02:57.8]} 3. Bb5 {[%clk 0:03:00.8]} 3... a6 {[%clk 0:02:55.2]}
4. Ba4 {[%clk 0:03:01.2]} 4... Nf6 {[%clk 0:02:54.2]} 5. O-O {[%clk 0:03:01.4]}
5... Be7 {[%clk 0:02:53.1]} 6. Re1 {[%clk 0:02:59.5]} 6... b5 {[%clk 0:02:52.7]}
7. Bb3 {[%clk 0:02:59.8]} 7... O-O {[%clk 0:02:52.6]} 8. a4 {[%clk 0:02:59.8]}
8... Bb7 {[%clk 0:02:50]} 9. d3 {[%clk 0:02:59.7]} 9... d6 {[%clk 0:02:49.6]}
10. Nbd2 {[%clk 0:02:59.8]} 10... Nd7 {[%clk 0:02:37.3]} 11. axb5 {[%clk
0:02:42.2]} 11... axb5 {[%clk 0:02:36.9]} 12. Rxa8 {[%clk 0:02:43.1]} 12... Qxa8
{[%clk 0:02:37]} 13. c3 {[%clk 0:02:43.5]} 13... Nc5 {[%clk 0:02:36.2]} 14. Bc2
{[%clk 0:02:43.8]} 14... b4 {[%clk 0:02:30.9]} 15. d4 {[%clk 0:02:37.8]} 15...
bxc3 {[%clk 0:02:27.8]} 16. bxc3 {[%clk 0:02:35.1]} 16... Nd7 {[%clk 0:02:28]}
17. Nc4 {[%clk 0:02:09.8]} 17... Bf6 {[%clk 0:02:18.4]} 18. Ne3 {[%clk
0:01:29.2]} 18... exd4 {[%clk 0:02:09.9]} 19. cxd4 {[%clk 0:01:28]} 19... Nb4
{[%clk 0:02:08.7]} 20. Ng4 {[%clk 0:00:59.4]} 20... Nxc2 {[%clk 0:02:07.7]} 21.
Qxc2 {[%clk 0:00:57.5]} 21... Bd8 {[%clk 0:02:02.4]} 22. d5 {[%clk 0:00:51.8]}
22... Re8 {[%clk 0:02:02.1]} 23. Ne3 {[%clk 0:00:45.8]} 23... Nf6 {[%clk
0:01:53.9]} 24. Nf5 {[%clk 0:00:39.8]} 24... Bc8 {[%clk 0:01:32.4]} 25. N5d4
{[%clk 0:00:35.9]} 25... Nd7 {[%clk 0:01:21.1]} 26. Nc6 {[%clk 0:00:30.1]} 26...
Bf6 {[%clk 0:01:21.2]} 27. h3 {[%clk 0:00:28.4]} 27... Bb7 {[%clk 0:01:15.8]}
28. Ncd4 {[%clk 0:00:19.7]} 28... Nc5 {[%clk 0:01:15.9]} 29. Bd2 {[%clk
0:00:16.9]} 29... Ba6 {[%clk 0:01:12]} 30. Nb3 {[%clk 0:00:15.6]} 30... Bd3
{[%clk 0:01:08.3]} 31. Qd1 {[%clk 0:00:13.8]} 31... Nxe4 {[%clk 0:01:08]} 32.
Ba5 {[%clk 0:00:09.7]} 32... Bc4 {[%clk 0:01:03.7]} 33. Bxc7 {[%clk 0:00:08.9]}
33... Bxd5 {[%clk 0:01:03.3]} 34. Nbd4 {[%clk 0:00:06.9]} 34... Rc8 {[%clk
0:00:55.9]} 35. Bb6 {[%clk 0:00:05.6]} 35... g6 {[%clk 0:00:47.5]} 36. Qb1
{[%clk 0:00:03.6]} 36... Nc3 {[%clk 0:00:45.1]} 37. Qb4 {[%clk 0:00:02.8]} 37...
Ne4 {[%clk 0:00:37.1]} 38. Qa5 {[%clk 0:00:02.5]} 38... Qb7 {[%clk 0:00:34.8]}
39. Ne2 {[%clk 0:00:02.8]} 39... Nc3 {[%clk 0:00:30.8]} 40. Bd4 {[%clk
0:00:01.4]} 40... Nxe2+ {[%clk 0:00:28.3]} 41. Rxe2 {[%clk 0:00:02.3]} 41...
Bxf3 {[%clk 0:00:28.3]} 42. Bxf6 {[%clk 0:00:01.9]} 42... Bxe2 {[%clk
0:00:27.3]} 43. Qg5 {[%clk 0:00:01.9]} 43... Qb1+ {[%clk 0:00:26.5]} 44. Kh2
{[%clk 0:00:02]} 44... Qf5 {[%clk 0:00:26.7]} 45. Qh6 {[%clk 0:00:01.1]} 45...
Qxf6 {[%clk 0:00:26.2]} 0-1

[Event "*** Titled Tuesday Blitz"]
[Site "Chess.com"]
[Date "2020.04.21"]
[Round "2"]
[White "IljaJoke"]
[Black "swayamsm"]
[Result "1/2-1/2"]
[WhiteElo "2496"]
[BlackElo "2696"]
[TimeControl "180+1"]
[EndTime "10:17:53 PDT"]
[Termination "Game drawn by repetition"]

1. d4 {[%clk 0:03:00.9]} 1... Nf6 {[%clk 0:02:59.6]} 2. c4 {[%clk 0:03:01.1]}
2... e6 {[%clk 0:02:58.9]} 3. g3 {[%clk 0:03:01.6]} 3... c5 {[%clk 0:02:55.6]}
4. Nf3 {[%clk 0:03:01.9]} 4... cxd4 {[%clk 0:02:53.2]} 5. Nxd4 {[%clk
0:03:02.8]} 5... d5 {[%clk 0:02:53.7]} 6. Bg2 {[%clk 0:03:02.7]} 6... e5 {[%clk
0:02:53.3]} 7. Nf3 {[%clk 0:03:03.3]} 7... d4 {[%clk 0:02:53.3]} 8. O-O {[%clk
0:03:03.9]} 8... Nc6 {[%clk 0:02:53.7]} 9. e3 {[%clk 0:03:04.6]} 9... Be7 {[%clk
0:02:53.6]} 10. exd4 {[%clk 0:03:05.1]} 10... exd4 {[%clk 0:02:54.5]} 11. b4
{[%clk 0:03:05.7]} 11... O-O {[%clk 0:02:50.5]} 12. b5 {[%clk 0:02:55.7]} 12...
Na5 {[%clk 0:02:50.4]} 13. Qxd4 {[%clk 0:02:35]} 13... Qxd4 {[%clk 0:02:47.5]}
14. Nxd4 {[%clk 0:02:35.9]} 14... Nxc4 {[%clk 0:02:48.1]} 15. Nd2 {[%clk
0:02:14.8]} 15... Nxd2 {[%clk 0:02:41.4]} 16. Bxd2 {[%clk 0:02:15.7]} 16... Rd8
{[%clk 0:02:40.5]} 17. Bc3 {[%clk 0:02:16.1]} 17... Nd5 {[%clk 0:02:35.7]} 18.
Bb2 {[%clk 0:01:57.5]} 18... Bf6 {[%clk 0:02:34.9]} 19. Rfd1 {[%clk 0:01:46.6]}
19... Bg4 {[%clk 0:02:31.4]} 20. f3 {[%clk 0:01:46.5]} 20... Bd7 {[%clk
0:02:24.7]} 21. Kf2 {[%clk 0:01:40.4]} 21... Bxb5 {[%clk 0:02:21.2]} 22. Nxb5
{[%clk 0:01:34.5]} 22... Bxb2 {[%clk 0:02:17.3]} 23. Rab1 {[%clk 0:01:34.9]}
23... Bf6 {[%clk 0:02:15.9]} 24. f4 {[%clk 0:01:21.3]} 24... a6 {[%clk
0:02:03.1]} 25. Rxd5 {[%clk 0:01:15.2]} 25... axb5 {[%clk 0:01:57.7]} 26. Rxd8+
{[%clk 0:01:12.2]} 26... Bxd8 {[%clk 0:01:55.1]} 27. Bd5 {[%clk 0:01:11.1]}
27... Ra5 {[%clk 0:01:52.5]} 28. Rd1 {[%clk 0:01:09.6]} 28... Kf8 {[%clk
0:01:43.1]} 29. Kf3 {[%clk 0:01:04.7]} 29... Be7 {[%clk 0:01:40.6]} 30. Bb3
{[%clk 0:01:04.1]} 30... Ke8 {[%clk 0:01:34.3]} 31. Rd5 {[%clk 0:01:02.6]} 31...
Bd8 {[%clk 0:01:31.5]} 32. h4 {[%clk 0:01:02.2]} 32... b4 {[%clk 0:01:30.7]} 33.
Rxa5 {[%clk 0:00:37.1]} 33... Bxa5 {[%clk 0:01:31.6]} 34. Ke4 {[%clk 0:00:35.4]}
34... Ke7 {[%clk 0:01:31]} 35. g4 {[%clk 0:00:35.4]} 35... Bb6 {[%clk 0:01:30]}
36. h5 {[%clk 0:00:35]} 36... h6 {[%clk 0:01:29.2]} 37. Bc4 {[%clk 0:00:34.8]}
37... Bf2 {[%clk 0:01:27.8]} 38. Bb3 {[%clk 0:00:34.8]} 38... Be1 {[%clk
0:01:27.7]} 39. Bc4 {[%clk 0:00:34.9]} 39... Bd2 {[%clk 0:01:27]} 40. Bb3 {[%clk
0:00:34.9]} 40... Kd6 {[%clk 0:01:25.3]} 41. Bxf7 {[%clk 0:00:34.2]} 41... b6
{[%clk 0:01:25.1]} 42. Bb3 {[%clk 0:00:34]} 42... Bc3 {[%clk 0:01:24.6]} 43. Kf5
{[%clk 0:00:34.2]} 43... Ke7 {[%clk 0:01:25]} 44. g5 {[%clk 0:00:34.5]} 44...
hxg5 {[%clk 0:01:22.3]} 45. fxg5 {[%clk 0:00:35.4]} 45... Bd2 {[%clk 0:01:19.3]}
46. Kg6 {[%clk 0:00:35.4]} 46... Kf8 {[%clk 0:01:13.3]} 47. Bc4 {[%clk
0:00:34.7]} 47... Bc1 {[%clk 0:01:12.9]} 48. Bb3 {[%clk 0:00:34.9]} 48... Bd2
{[%clk 0:01:11.5]} 49. h6 {[%clk 0:00:20.6]} 49... gxh6 {[%clk 0:01:12.4]} 50.
Kxh6 {[%clk 0:00:21.1]} 50... Bc1 {[%clk 0:01:11.4]} 51. Kg6 {[%clk 0:00:20.2]}
51... Bd2 {[%clk 0:01:10.7]} 52. Kf6 {[%clk 0:00:20.5]} 52... Bc3+ {[%clk
0:01:10.3]} 53. Kg6 {[%clk 0:00:16.3]} 53... Bd2 {[%clk 0:01:09.5]} 54. Kf5
{[%clk 0:00:16.6]} 54... Kg7 {[%clk 0:01:08.4]} 55. g6 {[%clk 0:00:17.1]} 55...
Bc3 {[%clk 0:01:09.3]} 56. Bf7 {[%clk 0:00:17.2]} 56... Be1 {[%clk 0:01:10.2]}
57. Ke6 {[%clk 0:00:16.6]} 57... Bc3 {[%clk 0:01:11.1]} 58. Kd5 {[%clk
0:00:16.9]} 58... Be1 {[%clk 0:01:11.2]} 59. Kc6 {[%clk 0:00:15.4]} 59... Bf2
{[%clk 0:01:11]} 60. Kb5 {[%clk 0:00:15]} 60... Bc5 {[%clk 0:01:11.3]} 61. Kc4
{[%clk 0:00:15.4]} 61... Kf6 {[%clk 0:01:11.2]} 62. Kb3 {[%clk 0:00:15.1]} 62...
Kg7 {[%clk 0:01:11.6]} 63. Kc4 {[%clk 0:00:15.4]} 63... Kf6 {[%clk 0:01:11.8]}
64. Kb3 {[%clk 0:00:15.8]} 64... Kg7 {[%clk 0:01:11.9]} 65. Kc4 {[%clk
0:00:16.2]} 1/2-1/2

[Event "*** Titled Tuesday Blitz"]
[Site "Chess.com"]
[Date "2020.04.21"]
[Round "2"]
[White "ChrisTool2"]
[Black "chenxiaoyuer"]
[Result "1-0"]
[WhiteElo "2407"]
[BlackElo "2121"]
[TimeControl "180+1"]
[EndTime "10:17:53 PDT"]
[Termination "ChrisTool2 won on time"]

1. d4 {[%clk 0:03:00.9]} 1... Nf6 {[%clk 0:02:59.9]} 2. c4 {[%clk 0:02:59.9]}
2... g6 {[%clk 0:02:59.7]} 3. f3 {[%clk 0:02:58.8]} 3... Bg7 {[%clk 0:02:59.1]}
4. e4 {[%clk 0:02:56.8]} 4... d6 {[%clk 0:02:58.5]} 5. Nc3 {[%clk 0:02:57.4]}
5... O-O {[%clk 0:02:58.1]} 6. Nge2 {[%clk 0:02:58]} 6... b6 {[%clk 0:02:55.9]}
7. Bg5 {[%clk 0:02:55.9]} 7... c5 {[%clk 0:02:55]} 8. d5 {[%clk 0:02:52.3]} 8...
e6 {[%clk 0:02:54.7]} 9. Qd2 {[%clk 0:02:41.7]} 9... exd5 {[%clk 0:02:50.5]} 10.
cxd5 {[%clk 0:02:37.1]} 10... Ba6 {[%clk 0:02:48.7]} 11. Ng3 {[%clk 0:02:32.4]}
11... Bxf1 {[%clk 0:02:47.7]} 12. Nxf1 {[%clk 0:02:31.9]} 12... Na6 {[%clk
0:02:47.6]} 13. Ne3 {[%clk 0:02:16.9]} 13... Re8 {[%clk 0:02:39.4]} 14. O-O
{[%clk 0:02:14.8]} 14... Nc7 {[%clk 0:02:37.6]} 15. a4 {[%clk 0:02:13.7]} 15...
a6 {[%clk 0:02:37.2]} 16. Nc4 {[%clk 0:02:07.5]} 16... Rb8 {[%clk 0:02:29.9]}
17. Bf4 {[%clk 0:01:57.7]} 17... Nh5 {[%clk 0:02:18.6]} 18. Bxd6 {[%clk
0:01:21]} 18... b5 {[%clk 0:02:08.4]} 19. Bxc7 {[%clk 0:01:09.5]} 19... Qxc7
{[%clk 0:02:06.9]} 20. axb5 {[%clk 0:01:06.9]} 20... axb5 {[%clk 0:02:05.1]} 21.
d6 {[%clk 0:00:55.3]} 21... Qd7 {[%clk 0:01:55.9]} 22. Na5 {[%clk 0:00:33.9]}
22... Re6 {[%clk 0:01:28.4]} 23. Nd5 {[%clk 0:00:25]} 23... Rxd6 {[%clk
0:01:22.1]} 24. Qg5 {[%clk 0:00:22]} 24... h6 {[%clk 0:01:16.2]} 25. Qc1 {[%clk
0:00:20.3]} 25... c4 {[%clk 0:01:12.7]} 26. Kh1 {[%clk 0:00:19.3]} 26... Ra6
{[%clk 0:01:03.3]} 27. Qe3 {[%clk 0:00:16.4]} 27... Nf6 {[%clk 0:00:33.1]} 28.
Rfd1 {[%clk 0:00:12.5]} 28... Nxd5 {[%clk 0:00:32.9]} 29. Rxd5 {[%clk
0:00:11.6]} 29... Rd6 {[%clk 0:00:22.9]} 30. Rad1 {[%clk 0:00:10.6]} 30... Rxd5
{[%clk 0:00:22.4]} 31. exd5 {[%clk 0:00:10.3]} 31... Bxb2 {[%clk 0:00:18.2]} 32.
Qxh6 {[%clk 0:00:10.3]} 32... Bg7 {[%clk 0:00:16.7]} 33. Qf4 {[%clk 0:00:10]}
33... Ra8 {[%clk 0:00:16.5]} 34. Nc6 {[%clk 0:00:08.3]} 34... c3 {[%clk
0:00:16.2]} 35. h4 {[%clk 0:00:07.5]} 35... c2 {[%clk 0:00:15.5]} 36. Rc1 {[%clk
0:00:06.3]} 36... Ra1 {[%clk 0:00:12.1]} 37. Rxa1 {[%clk 0:00:05.1]} 37... Bxa1
{[%clk 0:00:13]} 38. Qc1 {[%clk 0:00:04.9]} 38... Bf6 {[%clk 0:00:03.5]} 39.
Qxc2 {[%clk 0:00:04.6]} 39... Qxd5 {[%clk 0:00:03]} 40. Nb4 {[%clk 0:00:02]} 1-0